Workbook

Sheet Harrestrup Å
A1: Vandområde | C1: Harrestrup Å | BA1: Vandområde | BC1: Damhusåen
A3: Udlednings nr. | C3: UH10 | D3: UH11 | E3: UH12 | F3: UH13 | G3: UH14 | H3: UØX7 | BA3: Udlednings nr. | BC3: UD10b | BD3: UD10d | BE3: UD11b | BF3: UD12 | BG3: UD13 | BH3: UD14 | BI3: UD15 | BJ3: UD16 | BK3: UD17 | BL3: UD18 | BM3: UD19b | BN3: UD20b | BO3: UD21 | BP3: UD21b | BQ3: UD24 | BR3: Sum
A4: Adresse | C4: Damhusengen | D4: Toftøjevej | E4: Jyllingevej | F4: Rødovre Stadion | G4: Spangen | H4: KV til Harrestrup Å 2028 | I4: SUM | BA4: Adresse | BC4: Nødoverløb Damhusåens renseanlæg | BD4: Hovedoverløb Damhus-ledning | BE4: Åhaven | BF4: Sønderkær | BG4: Vigerslev Allé | BH4: Gårdstedet | BI4: Heldbovej | BJ4: Lykkebovej | BK4: Landlystvej | BL4: Skyttegårdsvej | BM4: Sandhusvej | BN4: Hvidovre station | BO4: Vigerslev-parken N for Dæmningen | BP4: Nødoverløb ved Torpedo-bygværket | BQ4: Roskildevej | BR4: -
A5: Kloakeringstype | B5: Status | C5: Fælles | D5: Fælles | E5: Fælles | F5: Fælles | G5: Fælles | H5: - | I5: - | BA5: Kloakeringstype | BB5: Status | BC5: Fælles | BD5: Fælles | BE5: Fælles | BF5: Fælles | BG5: Fælles | BH5: Fælles | BI5: Fælles | BJ5: Fælles | BK5: Fælles | BL5: Fælles | BM5: Fælles | BN5: Fælles | BO5: Fælles | BP5: Fælles | BQ5: Fælles | BR5: -
B6: Plan | C6: Fælles | D6: Fælles | E6: Fælles | F6: Fælles | G6: Fælles | H6: Separat | I6: - | BB6: Plan | BC6: Fælles | BD6: Fælles | BE6: Fælles | BF6: Fælles | BG6: Fælles | BH6: Fælles | BI6: Fælles | BJ6: Fælles | BK6: Fælles | BL6: Fælles | BM6: Fælles | BN6: Fælles | BO6: Fælles | BP6: Fælles | BQ6: Fælles | BR6: -
B7: Strategi | C7: Fælles | D7: Fælles | E7: Fælles | F7: Fælles | G7: Fælles | H7: Separat | I7: - | BB7: Strategi | BC7: Fælles | BD7: Fælles | BE7: Fælles | BF7: Fælles | BG7: Fælles | BH7: Fælles | BI7: Fælles | BJ7: Fælles | BK7: Fælles | BL7: Fælles | BM7: Fælles | BN7: Fælles | BO7: Fælles | BP7: Fælles | BQ7: Fælles | BR7: -
A8: Reduceret areal ha | B8: Status | C8: 26.584792 | D8: 73.276558 | E8: 17.128219 | F8: 21.980863 | G8: 110.481437 | H8: - | I8: =SUM(Tabel13[[#This Row],[Damhusengen]:[KV til Harrestrup Å 2028]]) -> 249.451869 | BA8: Reduceret areal ha | BB8: Status | BC8: 62.09627 | BD8: 0 | BE8: 4.926299 | BF8: 13.292068 | BG8: 9.063189 | BH8: 1.454076 | BI8: 1.523395 | BJ8: 3.503314 | BK8: 1.93898 | BL8: 4.850912 | BM8: 2.3 | BN8: 1.07056 | BO8: 284.5 | BP8: 0 | BQ8: 0 | BR8: =SUM(BC8:BQ8) -> 390.519063
B9: Plan | C9: 26.584792 | D9: 73.276558 | E9: 17.128219 | F9: 21.980863 | G9: 110.481437 | H9: 4.275 | I9: =SUM(Tabel13[[#This Row],[Damhusengen]:[KV til Harrestrup Å 2028]]) -> 253.726869 | BB9: Plan | BC9: 62.09627 | BD9: 0 | BE9: 4.926299 | BF9: 13.292068 | BG9: 9.063189 | BH9: 1.454076 | BI9: 1.523395 | BJ9: 3.503314 | BK9: 1.93898 | BL9: 4.850912 | BM9: 2.3 | BN9: 1.07056 | BO9: 284.5 | BP9: 0 | BQ9: 0 | BR9: 390.519063
B10: Strategi | C10: 26.584792 | D10: 73.276558 | E10: 17.128219 | F10: 21.980863 | G10: 110.481437 | H10: 85.5 | I10: =SUM(Tabel13[[#This Row],[Damhusengen]:[KV til Harrestrup Å 2028]]) -> 334.951869 | BB10: Strategi | BC10: 62.09627 | BD10: 0 | BE10: 4.926299 | BF10: 13.292068 | BG10: 9.063189 | BH10: 1.454076 | BI10: 1.523395 | BJ10: 3.503314 | BK10: 1.93898 | BL10: 4.850912 | BM10: 2.3 | BN10: 1.07056 | BO10: 284.5 | BP10: 0 | BQ10: 0 | BR10: 390.519063
A11: Maks udledning l/s | B11: Status | C11: 2000 | D11: 5000 | E11: 2000 | F11: 1500 | G11: 10000 | H11: - | I11: =SUM(Tabel13[[#This Row],[Damhusengen]:[KV til Harrestrup Å 2028]]) -> 20500 | BA11: Maks udledning l/s | BB11: Status | BC11: 5000 | BD11: 5000 | BE11: 700 | BF11: 3000 | BG11: 1200 | BH11: 500 | BI11: 100 | BJ11: 300 | BK11: 300 | BL11: 500 | BM11: 500 | BN11: 200 | BO11: 1500 | BP11: 0 | BQ11: 1000 | BR11: 19800
B12: Plan | C12: 2000 | D12: 5000 | E12: 2000 | F12: 1500 | G12: 10000 | H12: 260 | I12: =SUM(Tabel13[[#This Row],[Damhusengen]:[KV til Harrestrup Å 2028]]) -> 20760 | BB12: Plan | BC12: 5000 | BD12: 5000 | BE12: 700 | BF12: 3000 | BG12: 1200 | BH12: 500 | BI12: 100 | BJ12: 300 | BK12: 300 | BL12: 500 | BM12: 500 | BN12: 200 | BO12: 1500 | BP12: 0 | BQ12: 1000 | BR12: 19800
B13: Strategi | C13: 2000 | D13: 5000 | E13: 2000 | F13: 1500 | G13: 10000 | H13: 5130 | I13: =SUM(Tabel13[[#This Row],[Damhusengen]:[KV til Harrestrup Å 2028]]) -> 25630 | BB13: Strategi | BC13: 5000 | BD13: 5000 | BE13: 700 | BF13: 3000 | BG13: 1200 | BH13: 500 | BI13: 100 | BJ13: 300 | BK13: 300 | BL13: 500 | BM13: 500 | BN13: 200 | BO13: 1500 | BP13: 0 | BQ13: 1000 | BR13: 19800
A14: Overløbshyppighed antal/år | B14: Status | C14: 3 | D14: 16 | E14: 10 | F14: 11 | G14: 9 | H14: - | I14: =SUM(Tabel13[[#This Row],[Damhusengen]:[KV til Harrestrup Å 2028]]) -> 49 | BA14: Overløbshyppighed antal/år | BB14: Status | BC14: 2 | BD14: 1 | BE14: 0.5 | BF14: 0.1 | BG14: 0.1 | BH14: 0.1 | BI14: 0.1 | BJ14: 0.1 | BK14: 0.25 | BL14: 0.3 | BM14: 0.1 | BN14: 0.1 | BO14: 0.2 | BP14: 0 | BQ14: 13 | BR14: -
B15: Plan | C15: 1 | D15: 1 | E15: 1 | F15: 1 | G15: 1 | H15: 0 | I15: =SUM(Tabel13[[#This Row],[Damhusengen]:[KV til Harrestrup Å 2028]]) -> 5 | BB15: Plan | BC15: 2 | BD15: 1 | BE15: 0.5 | BF15: 0.1 | BG15: 0.1 | BH15: 0.1 | BI15: 0.1 | BJ15: 0.1 | BK15: 0.25 | BL15: 0.3 | BM15: 0.1 | BN15: 0.1 | BO15: 0.2 | BP15: 0 | BQ15: 13 | BR15: -
B16: Strategi | C16: 1 | D16: 0.4375 | E16: 0.7 | F16: 0.8181818182 | G16: 0.7777777778 | H16: 0 | I16: =SUM(Tabel13[[#This Row],[Damhusengen]:[KV til Harrestrup Å 2028]]) -> 3.733459596 | BB16: Strategi | BC16: 1 | BD16: 0.1 | BE16: 0.05 | BF16: 0.01 | BG16: 0.01 | BH16: 0.01 | BI16: 0.01 | BJ16: 0.01 | BK16: 0.025 | BL16: 0.03 | BM16: 0.01 | BN16: 0.01 | BO16: 0.02 | BP16: 0 | BQ16: 10 | BR16: -
A17: Vand m3/år | B17: Status | C17: 2071 | D17: 42928 | E17: 6784 | F17: 5700 | G17: 184133 | H17: - | I17: =SUM(Tabel13[[#This Row],[Damhusengen]:[KV til Harrestrup Å 2028]]) -> 241616 | BA17: Vand m3/år | BB17: Status | BC17: 3408 | BD17: 15000 | BE17: 500 | BF17: 1000 | BG17: 100 | BH17: 100 | BI17: 100 | BJ17: 100 | BK17: 500 | BL17: 100 | BM17: 100 | BN17: 100 | BO17: 500 | BP17: 0 | BQ17: 8734 | BR17: =SUM(BC17:BQ17) -> 30342
B18: Plan | C18: 684.3833333 | D18: 2573.35 | E18: 666.24 | F18: 503.7045455 | G18: 19900.91111 | H18: 23000 | I18: =SUM(Tabel13[[#This Row],[Damhusengen]:[KV til Harrestrup Å 2028]]) -> 47328.58899 | BB18: Plan | BC18: 3408 | BD18: 15000 | BE18: 500 | BF18: 1000 | BG18: 100 | BH18: 100 | BI18: 100 | BJ18: 100 | BK18: 500 | BL18: 100 | BM18: 100 | BN18: 100 | BO18: 500 | BP18: 0 | BQ18: 8734 | BR18: 30342
B19: Strategi | C19: 684.3833333 | D19: 612.5 | E19: 544 | F19: 285.7954545 | G19: 11616.25 | H19: 300000 | I19: =SUM(Tabel13[[#This Row],[Damhusengen]:[KV til Harrestrup Å 2028]]) -> 313742.9288 | BB19: Strategi | BC19: 1704 | BD19: 1500 | BE19: 50 | BF19: 100 | BG19: 10 | BH19: 10 | BI19: 10 | BJ19: 10 | BK19: 50 | BL19: 10 | BM19: 10 | BN19: 10 | BO19: 50 | BP19: 0 | BQ19: 780 | BR19: 4304
A20: COD kg/år | B20: Status | C20: 103.55 | D20: 2146.4 | E20: 339.2 | F20: 285 | G20: 9206.65 | H20: - | I20: =SUM(Tabel13[[#This Row],[Damhusengen]:[KV til Harrestrup Å 2028]]) -> 12080.8 | BA20: COD kg/år | BB20: Status | BC20: 170 | BD20: 750 | BE20: 25 | BF20: 50 | BG20: 5 | BH20: 5 | BI20: 5 | BJ20: 5 | BK20: 25 | BL20: 5 | BM20: 5 | BN20: 5 | BO20: 25 | BP20: 0 | BQ20: 437 | BR20: 1517
B21: Plan | C21: 34.21916667 | D21: 128.6675 | E21: 33.312 | F21: 25.18522727 | G21: 995.0455556 | H21: 3680 | I21: =SUM(Tabel13[[#This Row],[Damhusengen]:[KV til Harrestrup Å 2028]]) -> 4896.429449 | BB21: Plan | BC21: 170 | BD21: 750 | BE21: 25 | BF21: 50 | BG21: 5 | BH21: 5 | BI21: 5 | BJ21: 5 | BK21: 25 | BL21: 5 | BM21: 5 | BN21: 5 | BO21: 25 | BP21: 0 | BQ21: 437 | BR21: 1517
B22: Strategi | C22: 34.21916667 | D22: 30.625 | E22: 27.2 | F22: 14.28977273 | G22: 580.8125 | H22: 48000 | I22: =SUM(Tabel13[[#This Row],[Damhusengen]:[KV til Harrestrup Å 2028]]) -> 48687.14644 | BB22: Strategi | BC22: 85 | BD22: 75 | BE22: 2 | BF22: 5.9 | BG22: 0.5 | BH22: 0.5 | BI22: 0.5 | BJ22: 0.5 | BK22: 2.5 | BL22: 0.5 | BM22: 0.5 | BN22: 0.5 | BO22: 2.5 | BP22: 0 | BQ22: 39 | BR22: 215.4
A23: Total N kg/år | B23: Status | C23: 4.142 | D23: 85.856 | E23: 13.568 | F23: 11.4 | G23: 368.266 | H23: - | I23: =SUM(Tabel13[[#This Row],[Damhusengen]:[KV til Harrestrup Å 2028]]) -> 483.232 | BA23: Total N kg/år | BB23: Status | BC23: 6.8 | BD23: 30 | BE23: 1 | BF23: 2 | BG23: 0.2 | BH23: 0.2 | BI23: 0.2 | BJ23: 0.2 | BK23: 1 | BL23: 0.2 | BM23: 0.2 | BN23: 0.2 | BO23: 1 | BP23: 0 | BQ23: 17.5 | BR23: 60.7
B24: Plan | C24: 1.368766667 | D24: 5.1467 | E24: 1.33248 | F24: 1.007409091 | G24: 39.80182222 | H24: 230 | I24: =SUM(Tabel13[[#This Row],[Damhusengen]:[KV til Harrestrup Å 2028]]) -> 278.657178 | BB24: Plan | BC24: 6.8 | BD24: 30 | BE24: 1 | BF24: 2 | BG24: 0.2 | BH24: 0.2 | BI24: 0.2 | BJ24: 0.2 | BK24: 1 | BL24: 0.2 | BM24: 0.2 | BN24: 0.2 | BO24: 1 | BP24: 0 | BQ24: 17.5 | BR24: 60.7
B25: Strategi | C25: 1.368766667 | D25: 1.225 | E25: 1.088 | F25: 0.5715909091 | G25: 23.2325 | H25: 3000 | I25: =SUM(Tabel13[[#This Row],[Damhusengen]:[KV til Harrestrup Å 2028]]) -> 3027.485858 | BB25: Strategi | BC25: 3.4 | BD25: 3 | BE25: 0.08 | BF25: 0.2 | BG25: 0.02 | BH25: 0.02 | BI25: 0.02 | BJ25: 0.02 | BK25: 0.1 | BL25: 0.02 | BM25: 0.02 | BN25: 0.02 | BO25: 0.1 | BP25: 0 | BQ25: 1.6 | BR25: 8.62
A26: Total P kg/år | B26: Status | C26: 1.0355 | D26: 21.464 | E26: 3.392 | F26: 2.85 | G26: 92.0665 | H26: 750 | I26: =SUM(Tabel13[[#This Row],[Damhusengen]:[KV til Harrestrup Å 2028]]) -> 870.808 | BA26: Total P kg/år | BB26: Status | BC26: 1.7 | BD26: 7.5 | BE26: 0.25 | BF26: 0.5 | BG26: 0.05 | BH26: 0.05 | BI26: 0.05 | BJ26: 0.05 | BK26: 0.25 | BL26: 0.05 | BM26: 0.05 | BN26: 0.05 | BO26: 0.25 | BP26: 0 | BQ26: 4.4 | BR26: 15.2
B27: Plan | C27: 0.3421916667 | D27: 1.286675 | E27: 0.33312 | F27: 0.2518522727 | G27: 9.950455556 | H27: 0 | I27: =SUM(Tabel13[[#This Row],[Damhusengen]:[KV til Harrestrup Å 2028]]) -> 12.16429449 | BB27: Plan | BC27: 1.7 | BD27: 7.5 | BE27: 0.25 | BF27: 0.5 | BG27: 0.05 | BH27: 0.05 | BI27: 0.05 | BJ27: 0.05 | BK27: 0.25 | BL27: 0.05 | BM27: 0.05 | BN27: 0.05 | BO27: 0.25 | BP27: 0 | BQ27: 4.4 | BR27: 15.2
B28: Strategi | C28: 0.3421916667 | D28: 0.30625 | E28: 0.272 | F28: 0.1428977273 | G28: 5.808125 | H28: 0 | I28: =SUM(Tabel13[[#This Row],[Damhusengen]:[KV til Harrestrup Å 2028]]) -> 6.871464394 | BB28: Strategi | BC28: 0.8 | BD28: 0.75 | BE28: 0.02 | BF28: 0.06 | BG28: 0.005 | BH28: 0.005 | BI28: 0.005 | BJ28: 0.005 | BK28: 0.025 | BL28: 0.005 | BM28: 0.005 | BN28: 0.005 | BO28: 0.025 | BP28: 0 | BQ28: 0.4 | BR28: =SUM(BC28:BQ28) -> 2.115
